[Event "*** SCC Grand Prix: Titled Tuesday Blitz"]
[Site "Chess.com"]
[Date "2020.10.13"]
[Round "7"]
[White "GregShahade"]
[Black "sergeikim"]
[Result "1-0"]
[WhiteElo "2646"]
[BlackElo "2520"]
[TimeControl "180+1"]
[EndTime "11:17:28 PDT"]
[Termination "GregShahade won on time"]

1. e4 {[%clk 0:03:00.9]} 1... e5 {[%clk 0:02:59.4]} 2. Nf3 {[%clk 0:03:00.7]}
2... Nc6 {[%clk 0:02:59.3]} 3. Bb5 {[%clk 0:03:01.3]} 3... a6 {[%clk 0:02:59.4]}
4. Ba4 {[%clk 0:03:01.3]} 4... Nf6 {[%clk 0:02:59.4]} 5. O-O {[%clk 0:03:01.8]}
5... b5 {[%clk 0:02:59.3]} 6. Bb3 {[%clk 0:03:01.4]} 6... Bc5 {[%clk 0:02:59.2]}
7. a4 {[%clk 0:03:00.5]} 7... Bb7 {[%clk 0:02:58.2]} 8. c3 {[%clk 0:03:00]} 8...
d6 {[%clk 0:02:57.7]} 9. d4 {[%clk 0:02:59.9]} 9... Bb6 {[%clk 0:02:57.6]} 10.
Bg5 {[%clk 0:02:59.6]} 10... h6 {[%clk 0:02:56.2]} 11. Bxf6 {[%clk 0:02:59.7]}
11... Qxf6 {[%clk 0:02:55.4]} 12. Bd5 {[%clk 0:03:00.5]} 12... exd4 {[%clk
0:02:47.4]} 13. cxd4 {[%clk 0:03:01.4]} 13... O-O {[%clk 0:02:47]} 14. Qc1
{[%clk 0:02:36.6]} 14... Na5 {[%clk 0:02:31.8]} 15. Bxb7 {[%clk 0:02:22.8]}
15... Nxb7 {[%clk 0:02:31]} 16. axb5 {[%clk 0:02:15.5]} 16... axb5 {[%clk
0:02:19.7]} 17. Rxa8 {[%clk 0:02:16.4]} 17... Rxa8 {[%clk 0:02:19.3]} 18. Qc6
{[%clk 0:02:15.9]} 18... Rb8 {[%clk 0:02:19.5]} 19. Nc3 {[%clk 0:02:10.7]} 19...
Nd8 {[%clk 0:01:43.7]} 20. Qxb5 {[%clk 0:02:06.9]} 20... c6 {[%clk 0:01:40.3]}
21. Qd3 {[%clk 0:02:04.6]} 21... Ne6 {[%clk 0:01:35.3]} 22. e5 {[%clk
0:02:01.4]} 22... dxe5 {[%clk 0:01:25.1]} 23. dxe5 {[%clk 0:02:02.3]} 23... Qf4
{[%clk 0:01:24]} 24. Qe4 {[%clk 0:01:39.4]} 24... Qxe4 {[%clk 0:01:13.3]} 25.
Nxe4 {[%clk 0:01:40.3]} 25... Bd4 {[%clk 0:01:13.4]} 26. Nxd4 {[%clk 0:01:33.9]}
26... Nxd4 {[%clk 0:01:13.4]} 27. Rb1 {[%clk 0:01:26.6]} 27... Rb5 {[%clk
0:01:11.5]} 28. f3 {[%clk 0:01:06]} 28... Rxe5 {[%clk 0:01:07.4]} 29. Rd1 {[%clk
0:01:05.6]} 29... Rd5 {[%clk 0:01:06]} 30. Kf2 {[%clk 0:01:04.5]} 30... Ne6
{[%clk 0:00:49.7]} 31. Rxd5 {[%clk 0:01:03.9]} 31... cxd5 {[%clk 0:00:50.6]} 32.
Nc3 {[%clk 0:01:04.1]} 32... d4 {[%clk 0:00:50.4]} 33. Nb5 {[%clk 0:01:00]}
33... Kf8 {[%clk 0:00:48.7]} 34. g3 {[%clk 0:00:59.5]} 34... Ke7 {[%clk
0:00:40.2]} 35. Ke2 {[%clk 0:00:59.9]} 35... Kd7 {[%clk 0:00:34.8]} 36. Kd3
{[%clk 0:00:58.7]} 36... Ng5 {[%clk 0:00:29.4]} 37. Nxd4 {[%clk 0:00:57.7]}
37... g6 {[%clk 0:00:28.2]} 38. f4 {[%clk 0:00:56.3]} 38... Nh7 {[%clk
0:00:26.1]} 39. b4 {[%clk 0:00:49.3]} 39... Nf6 {[%clk 0:00:25.9]} 40. b5 {[%clk
0:00:48.2]} 40... Nd5 {[%clk 0:00:24.8]} 41. Ke4 {[%clk 0:00:47]} 41... Nc3+
{[%clk 0:00:24.1]} 42. Ke5 {[%clk 0:00:46.6]} 42... Na4 {[%clk 0:00:20.3]} 43.
Kf6 {[%clk 0:00:44.8]} 43... Ke8 {[%clk 0:00:20.4]} 44. f5 {[%clk 0:00:43.7]}
44... gxf5 {[%clk 0:00:13.2]} 45. Nxf5 {[%clk 0:00:44.6]} 45... Nb6 {[%clk
0:00:10.2]} 46. Nxh6 {[%clk 0:00:41.5]} 46... Nd5+ {[%clk 0:00:10.4]} 47. Kg7
{[%clk 0:00:41.6]} 47... f6 {[%clk 0:00:08.9]} 48. Nf5 {[%clk 0:00:40]} 48...
Kd7 {[%clk 0:00:08.3]} 49. h4 {[%clk 0:00:40.1]} 49... Ke6 {[%clk 0:00:08.3]}
50. Kg6 {[%clk 0:00:34.6]} 50... Nb6 {[%clk 0:00:06.5]} 51. h5 {[%clk
0:00:34.4]} 51... Nd7 {[%clk 0:00:06.5]} 52. Nd4+ {[%clk 0:00:29]} 52... Ke7
{[%clk 0:00:05.9]} 53. h6 {[%clk 0:00:27.7]} 53... Ne5+ {[%clk 0:00:05.4]} 54.
Kg7 {[%clk 0:00:27.5]} 1-0

[Event "*** SCC Grand Prix: Titled Tuesday Blitz"]
[Site "Chess.com"]
[Date "2020.10.13"]
[Round "7"]
[White "Mbneu"]
[Black "Slovak_fighter2000"]
[Result "0-1"]
[WhiteElo "2242"]
[BlackElo "2397"]
[TimeControl "180+1"]
[EndTime "11:17:32 PDT"]
[Termination "Slovak_fighter2000 won by resignation"]

1. d4 {[%clk 0:03:00.9]} 1... Nf6 {[%clk 0:02:05.4]} 2. c4 {[%clk 0:02:57.5]}
2... e5 {[%clk 0:02:02.8]} 3. Nf3 {[%clk 0:02:56.3]} 3... exd4 {[%clk
0:01:56.2]} 4. Nxd4 {[%clk 0:02:54.8]} 4... Nc6 {[%clk 0:01:48.3]} 5. Nxc6
{[%clk 0:02:48.6]} 5... bxc6 {[%clk 0:01:48.1]} 6. g3 {[%clk 0:02:49]} 6... Bc5
{[%clk 0:01:41.7]} 7. Bg2 {[%clk 0:02:47.4]} 7... Rb8 {[%clk 0:01:33.2]} 8. O-O
{[%clk 0:02:45.2]} 8... h5 {[%clk 0:01:33.1]} 9. Bg5 {[%clk 0:02:39.8]} 9... Qe7
{[%clk 0:01:25.9]} 10. b3 {[%clk 0:02:33.1]} 10... Qe5 {[%clk 0:01:13.7]} 11.
Bxf6 {[%clk 0:02:32.1]} 11... Qxf6 {[%clk 0:01:14.6]} 12. Nd2 {[%clk 0:02:28.9]}
12... Be7 {[%clk 0:00:59.3]} 13. Ne4 {[%clk 0:02:10.4]} 13... Qe5 {[%clk
0:00:57]} 14. Qd3 {[%clk 0:02:05.7]} 14... d6 {[%clk 0:00:54.5]} 15. Nc3 {[%clk
0:01:39.3]} 15... Bd7 {[%clk 0:00:47.8]} 16. f4 {[%clk 0:01:33.5]} 16... Qc5+
{[%clk 0:00:45.2]} 17. e3 {[%clk 0:01:32.8]} 17... h4 {[%clk 0:00:42.8]} 18. Qd4
{[%clk 0:01:20.4]} 18... Qxd4 {[%clk 0:00:39.2]} 19. exd4 {[%clk 0:01:19.8]}
19... hxg3 {[%clk 0:00:39.6]} 20. hxg3 {[%clk 0:01:19.4]} 20... Bf6 {[%clk
0:00:40]} 21. Rad1 {[%clk 0:01:18.5]} 21... c5 {[%clk 0:00:39.1]} 22. Ne2 {[%clk
0:01:14.9]} 22... cxd4 {[%clk 0:00:27.2]} 23. Nxd4 {[%clk 0:01:13.2]} 23... O-O
{[%clk 0:00:28.1]} 24. Kf2 {[%clk 0:01:03]} 24... Rfe8 {[%clk 0:00:26.2]} 25.
Rfe1 {[%clk 0:00:59.1]} 25... Rxe1 {[%clk 0:00:24.6]} 26. Kxe1 {[%clk
0:00:59.3]} 26... a5 {[%clk 0:00:22.3]} 27. Bc6 {[%clk 0:00:56.2]} 27... Bg4
{[%clk 0:00:21.1]} 28. Rd2 {[%clk 0:00:55]} 28... g5 {[%clk 0:00:18.2]} 29. Bf3
{[%clk 0:00:49.5]} 29... Bd7 {[%clk 0:00:14.8]} 30. Kf2 {[%clk 0:00:46.4]} 30...
gxf4 {[%clk 0:00:14]} 31. gxf4 {[%clk 0:00:46.1]} 31... Kf8 {[%clk 0:00:13.8]}
32. Kg3 {[%clk 0:00:45.4]} 32... a4 {[%clk 0:00:13.5]} 33. Bg4 {[%clk
0:00:45.1]} 33... Be8 {[%clk 0:00:12.5]} 34. bxa4 {[%clk 0:00:36.8]} 34... Bxa4
{[%clk 0:00:13.4]} 35. Nf5 {[%clk 0:00:34.9]} 35... Rb4 {[%clk 0:00:12.8]} 36.
c5 {[%clk 0:00:26.3]} 36... dxc5 {[%clk 0:00:07.9]} 37. Rd5 {[%clk 0:00:25.1]}
37... Rc4 {[%clk 0:00:04.9]} 38. Ne3 {[%clk 0:00:22.2]} 38... Rc3 {[%clk
0:00:04.5]} 39. Kf2 {[%clk 0:00:06.8]} 39... Bd4 {[%clk 0:00:04.9]} 40. Rxd4
{[%clk 0:00:07.3]} 40... cxd4 {[%clk 0:00:05.7]} 41. Nd5 {[%clk 0:00:07.8]}
41... Rc2+ {[%clk 0:00:05.9]} 42. Kf3 {[%clk 0:00:08.1]} 42... Bc6 {[%clk
0:00:05.1]} 43. Ke4 {[%clk 0:00:08.3]} 43... Bxd5+ {[%clk 0:00:06]} 44. Kxd5
{[%clk 0:00:09.1]} 44... d3 {[%clk 0:00:06.5]} 45. Bf5 {[%clk 0:00:09.1]} 45...
Rxa2 {[%clk 0:00:05.5]} 46. Bxd3 {[%clk 0:00:09.4]} 46... Rd2 {[%clk 0:00:06.1]}
47. Ke4 {[%clk 0:00:08.5]} 47... Rxd3 {[%clk 0:00:06.6]} 48. Kxd3 {[%clk
0:00:09.4]} 48... Ke7 {[%clk 0:00:07.1]} 49. Kc4 {[%clk 0:00:10.3]} 49... Ke6
{[%clk 0:00:07.4]} 50. Kc5 {[%clk 0:00:11.2]} 50... Kf6 {[%clk 0:00:08]} 51. Kc6
{[%clk 0:00:10.8]} 51... Kf5 {[%clk 0:00:08.9]} 52. Kxc7 {[%clk 0:00:11.4]}
52... Kxf4 {[%clk 0:00:09.5]} 53. Kd6 {[%clk 0:00:12.2]} 53... f5 {[%clk
0:00:09.5]} 54. Kd5 {[%clk 0:00:13.1]} 54... Ke3 {[%clk 0:00:09.7]} 0-1

[Event "*** SCC Grand Prix: Titled Tuesday Blitz"]
[Site "Chess.com"]
[Date "2020.10.13"]
[Round "7"]
[White "ZverevLev"]
[Black "AungTZ"]
[Result "1-0"]
[WhiteElo "2302"]
[BlackElo "2143"]
[TimeControl "180+1"]
[EndTime "11:17:35 PDT"]
[Termination "ZverevLev won on time"]

1. Nf3 {[%clk 0:02:23.4]} 1... d5 {[%clk 0:02:58.3]} 2. d4 {[%clk 0:02:21.8]}
2... Nf6 {[%clk 0:02:58.3]} 3. c4 {[%clk 0:02:20]} 3... e6 {[%clk 0:02:57.2]} 4.
Nc3 {[%clk 0:02:19.4]} 4... Be7 {[%clk 0:02:57.2]} 5. Qc2 {[%clk 0:02:18.4]}
5... O-O {[%clk 0:02:56.1]} 6. e3 {[%clk 0:02:16.7]} 6... c6 {[%clk 0:02:56]} 7.
cxd5 {[%clk 0:02:14.6]} 7... exd5 {[%clk 0:02:55]} 8. Bd3 {[%clk 0:02:15.2]}
8... Nbd7 {[%clk 0:02:52.3]} 9. O-O {[%clk 0:02:13.3]} 9... Re8 {[%clk
0:02:50.3]} 10. Ne5 {[%clk 0:02:12.2]} 10... Nf8 {[%clk 0:02:50.2]} 11. h3
{[%clk 0:02:10.2]} 11... N6d7 {[%clk 0:02:49.2]} 12. f4 {[%clk 0:02:07.6]} 12...
f6 {[%clk 0:02:48.7]} 13. Nf3 {[%clk 0:02:02.3]} 13... Bd6 {[%clk 0:02:48.1]}
14. Nh4 {[%clk 0:01:58.7]} 14... Nb6 {[%clk 0:02:46.8]} 15. b3 {[%clk
0:01:57.7]} 15... Bd7 {[%clk 0:02:44.2]} 16. Bf5 {[%clk 0:01:56.5]} 16... Rc8
{[%clk 0:02:41.1]} 17. Rf3 {[%clk 0:01:55.1]} 17... c5 {[%clk 0:02:32.6]} 18.
Bb2 {[%clk 0:01:52.5]} 18... cxd4 {[%clk 0:02:31.5]} 19. exd4 {[%clk 0:01:52.9]}
19... g6 {[%clk 0:01:56.7]} 20. Bxg6 {[%clk 0:01:44.7]} 20... hxg6 {[%clk
0:01:53.5]} 21. Nxg6 {[%clk 0:01:45.6]} 21... f5 {[%clk 0:01:39.3]} 22. Nxf8
{[%clk 0:01:41]} 22... Rxf8 {[%clk 0:01:38]} 23. Rg3+ {[%clk 0:01:40.8]} 23...
Kf7 {[%clk 0:01:37.8]} 24. Qe2 {[%clk 0:01:39.4]} 24... Qh4 {[%clk 0:01:35.8]}
25. Rf3 {[%clk 0:01:31.3]} 25... Rce8 {[%clk 0:01:35]} 26. Qf1 {[%clk
0:01:29.2]} 26... Rg8 {[%clk 0:01:30.6]} 27. Nb5 {[%clk 0:01:25]} 27... Bb8
{[%clk 0:01:27.1]} 28. Bc3 {[%clk 0:01:20.9]} 28... a6 {[%clk 0:01:25.2]} 29.
Be1 {[%clk 0:01:18.6]} 29... Qf6 {[%clk 0:01:20.7]} 30. Nc3 {[%clk 0:01:13.6]}
30... Bd6 {[%clk 0:00:55.2]} 31. Bf2 {[%clk 0:01:04.5]} 31... Bb4 {[%clk
0:00:51.9]} 32. Ne2 {[%clk 0:00:59.4]} 32... Nc8 {[%clk 0:00:49.5]} 33. a4
{[%clk 0:00:57.2]} 33... Nd6 {[%clk 0:00:48.9]} 34. Ng3 {[%clk 0:00:56]} 34...
Ne4 {[%clk 0:00:48.1]} 35. Nxe4 {[%clk 0:00:54.1]} 35... fxe4 {[%clk 0:00:47.5]}
36. Re3 {[%clk 0:00:53.7]} 36... Qxd4 {[%clk 0:00:27.7]} 37. Rd1 {[%clk
0:00:48.2]} 37... Qb2 {[%clk 0:00:19.3]} 38. Rxd5 {[%clk 0:00:44.9]} 38... Bc6
{[%clk 0:00:20.2]} 39. Rf5+ {[%clk 0:00:41.7]} 39... Ke6 {[%clk 0:00:20.4]} 40.
Qc4+ {[%clk 0:00:36]} 40... Kd7 {[%clk 0:00:19.3]} 41. Qxb4 {[%clk 0:00:26.4]}
41... Qc1+ {[%clk 0:00:13.9]} 42. Kh2 {[%clk 0:00:22.5]} 42... Qf1 {[%clk
0:00:12.9]} 43. Rf7+ {[%clk 0:00:19.7]} 43... Kc8 {[%clk 0:00:12.1]} 44. Bg3
{[%clk 0:00:17.7]} 44... Re6 {[%clk 0:00:09.7]} 45. f5 {[%clk 0:00:16.2]} 45...
Rd6 {[%clk 0:00:07.9]} 46. Qxd6 {[%clk 0:00:14.8]} 1-0

[Event "*** SCC Grand Prix: Titled Tuesday Blitz"]
[Site "Chess.com"]
[Date "2020.10.13"]
[Round "7"]
[White "pedromartinez91"]
[Black "Meri-Arabidze"]
[Result "0-1"]
[WhiteElo "2516"]
[BlackElo "2689"]
[TimeControl "180+1"]
[EndTime "11:17:37 PDT"]
[Termination "Meri-Arabidze won by resignation"]

1. d4 {[%clk 0:03:00.9]} 1... d5 {[%clk 0:02:59.7]} 2. Bf4 {[%clk 0:03:00.6]}
2... Nf6 {[%clk 0:02:58.9]} 3. e3 {[%clk 0:03:00.7]} 3... e6 {[%clk 0:02:59.4]}
4. h3 {[%clk 0:03:00.5]} 4... Bd6 {[%clk 0:03:00]} 5. Nd2 {[%clk 0:02:58.7]}
5... c5 {[%clk 0:02:59]} 6. Bxd6 {[%clk 0:02:48.7]} 6... Qxd6 {[%clk 0:02:58.4]}
7. Ngf3 {[%clk 0:02:49.6]} 7... O-O {[%clk 0:02:57.1]} 8. c3 {[%clk 0:02:48.7]}
8... b6 {[%clk 0:02:57.1]} 9. Ne5 {[%clk 0:02:43.9]} 9... Nfd7 {[%clk
0:02:54.1]} 10. f4 {[%clk 0:02:37.4]} 10... f6 {[%clk 0:02:53.9]} 11. Nef3
{[%clk 0:02:32.1]} 11... Bb7 {[%clk 0:02:45.9]} 12. Bb5 {[%clk 0:02:18.2]} 12...
e5 {[%clk 0:02:44.7]} 13. dxe5 {[%clk 0:02:16.5]} 13... fxe5 {[%clk 0:02:44.8]}
14. Nc4 {[%clk 0:02:16.4]} 14... Qg6 {[%clk 0:02:39.5]} 15. Ncxe5 {[%clk
0:01:56.8]} 15... Nxe5 {[%clk 0:02:34.3]} 16. Nxe5 {[%clk 0:01:57]} 16... Qxg2
{[%clk 0:02:33.2]} 17. Rf1 {[%clk 0:01:06.2]} 17... Qxb2 {[%clk 0:02:27.7]} 18.
Rb1 {[%clk 0:00:32.4]} 18... Qxc3+ {[%clk 0:02:26.5]} 19. Kf2 {[%clk 0:00:32.9]}
19... c4 {[%clk 0:02:01.6]} 20. Qg4 {[%clk 0:00:32.2]} 20... Qd2+ {[%clk
0:01:57.3]} 21. Kg3 {[%clk 0:00:30.2]} 21... Bc8 {[%clk 0:01:43]} 22. Qf3 {[%clk
0:00:25.6]} 22... Be6 {[%clk 0:01:36.9]} 23. Rbd1 {[%clk 0:00:26.2]} 23... Qb4
{[%clk 0:01:33.1]} 24. Rxd5 {[%clk 0:00:25.9]} 24... c3 {[%clk 0:00:52.6]} 25.
Bd3 {[%clk 0:00:20.6]} 25... Qe7 {[%clk 0:00:35.9]} 26. Qh5 {[%clk 0:00:14.4]}
26... g5 {[%clk 0:00:19.4]} 27. Nc6 {[%clk 0:00:05.3]} 27... Nxc6 {[%clk
0:00:17.6]} 28. Rxg5+ {[%clk 0:00:05.9]} 28... Kh8 {[%clk 0:00:18]} 29. e4
{[%clk 0:00:04.5]} 29... Rg8 {[%clk 0:00:17.7]} 30. h4 {[%clk 0:00:04.4]} 30...
Rxg5+ {[%clk 0:00:17.6]} 31. hxg5 {[%clk 0:00:05.3]} 31... Nb4 {[%clk
0:00:14.8]} 32. Be2 {[%clk 0:00:03.3]} 32... Rd8 {[%clk 0:00:13.5]} 33. f5
{[%clk 0:00:03.5]} 33... Bf7 {[%clk 0:00:12.9]} 34. g6 {[%clk 0:00:04]} 34...
Qe5+ {[%clk 0:00:09.3]} 35. Kf2 {[%clk 0:00:03.2]} 35... Bxg6 {[%clk 0:00:09.7]}
36. fxg6 {[%clk 0:00:03.2]} 36... Qxh5 {[%clk 0:00:09.4]} 37. Bxh5 {[%clk
0:00:02.8]} 37... hxg6 {[%clk 0:00:09.8]} 38. Bxg6 {[%clk 0:00:03.5]} 38... c2
{[%clk 0:00:10.2]} 39. Bh5 {[%clk 0:00:02.6]} 39... Nxa2 {[%clk 0:00:08.6]} 40.
Rh1 {[%clk 0:00:01.6]} 40... c1=Q {[%clk 0:00:08.6]} 41. Bd1+ {[%clk 0:00:01.6]}
41... Kg7 {[%clk 0:00:08.3]} 42. Rg1+ {[%clk 0:00:01.7]} 42... Kf6 {[%clk
0:00:08]} 43. Ke2 {[%clk 0:00:02.3]} 43... Ke5 {[%clk 0:00:07.9]} 44. Bb3 {[%clk
0:00:03.2]} 44... Qd2+ {[%clk 0:00:07.7]} 45. Kf3 {[%clk 0:00:03.5]} 45... Rd3+
{[%clk 0:00:08]} 46. Kg4 {[%clk 0:00:03.9]} 46... Rxb3 {[%clk 0:00:08.5]} 47.
Kh5 {[%clk 0:00:04.8]} 47... Qe2+ {[%clk 0:00:08.6]} 48. Kh6 {[%clk 0:00:04.8]}
48... Qh2+ {[%clk 0:00:08.5]} 49. Kg7 {[%clk 0:00:04.3]} 49... Qxg1+ {[%clk
0:00:09.4]} 50. Kf7 {[%clk 0:00:05.1]} 50... Rc3 {[%clk 0:00:09.6]} 51. Ke7
{[%clk 0:00:06]} 51... Rc7+ {[%clk 0:00:09.5]} 0-1

[Event "*** SCC Grand Prix: Titled Tuesday Blitz"]
[Site "Chess.com"]
[Date "2020.10.13"]
[Round "7"]
[White "Denis_Makhnyov"]
[Black "Sashadav97"]
[Result "1-0"]
[WhiteElo "2878"]
[BlackElo "2601"]
[TimeControl "180+1"]
[EndTime "11:17:40 PDT"]
[Termination "Denis_Makhnyov won by resignation"]

1. d4 {[%clk 0:03:00.9]} 1... d5 {[%clk 0:02:49.1]} 2. Bf4 {[%clk 0:02:59.6]}
2... c5 {[%clk 0:02:48.1]} 3. dxc5 {[%clk 0:02:59.2]} 3... e6 {[%clk 0:02:46.8]}
4. e4 {[%clk 0:02:58.8]} 4... Bxc5 {[%clk 0:02:44.5]} 5. exd5 {[%clk 0:02:58.9]}
5... exd5 {[%clk 0:02:44.9]} 6. Nc3 {[%clk 0:02:51.7]} 6... Nf6 {[%clk
0:02:40.9]} 7. Nf3 {[%clk 0:02:46.4]} 7... O-O {[%clk 0:02:40.5]} 8. Be2 {[%clk
0:02:45.6]} 8... Nc6 {[%clk 0:02:35.2]} 9. O-O {[%clk 0:02:45.5]} 9... h6 {[%clk
0:02:35.7]} 10. Ne5 {[%clk 0:02:38]} 10... Re8 {[%clk 0:02:34.3]} 11. Nxc6
{[%clk 0:02:38.2]} 11... bxc6 {[%clk 0:02:35.2]} 12. Bd3 {[%clk 0:02:38.8]}
12... Bg4 {[%clk 0:02:29.5]} 13. Qd2 {[%clk 0:02:38.6]} 13... Nh5 {[%clk
0:02:19.9]} 14. Rae1 {[%clk 0:02:31.5]} 14... Nxf4 {[%clk 0:02:17.7]} 15. Qxf4
{[%clk 0:02:31.4]} 15... Be6 {[%clk 0:02:12.9]} 16. Na4 {[%clk 0:02:06.4]} 16...
Bd6 {[%clk 0:02:12.2]} 17. Qd2 {[%clk 0:01:54.1]} 17... Bxh2+ {[%clk 0:01:57.4]}
18. Kxh2 {[%clk 0:01:54.3]} 18... Qh4+ {[%clk 0:01:58.1]} 19. Kg1 {[%clk
0:01:55.2]} 19... Qxa4 {[%clk 0:01:59]} 20. Qc3 {[%clk 0:01:55.7]} 20... Qf4
{[%clk 0:01:12.3]} 21. Qxc6 {[%clk 0:01:44.9]} 21... a5 {[%clk 0:01:08.2]} 22.
Qc3 {[%clk 0:01:09.7]} 22... a4 {[%clk 0:01:05.4]} 23. g3 {[%clk 0:01:03]} 23...
Qd6 {[%clk 0:01:02]} 24. Qd4 {[%clk 0:00:46.8]} 24... Reb8 {[%clk 0:00:51.7]}
25. b3 {[%clk 0:00:45.3]} 25... Bh3 {[%clk 0:00:47.2]} 26. Re5 {[%clk
0:00:40.6]} 26... Bxf1 {[%clk 0:00:46.9]} 27. Rxd5 {[%clk 0:00:39.1]} 27... Qb6
{[%clk 0:00:38.4]} 28. Kxf1 {[%clk 0:00:37]} 28... Qxd4 {[%clk 0:00:32.1]} 29.
Rxd4 {[%clk 0:00:37.9]} 29... axb3 {[%clk 0:00:28.1]} 30. axb3 {[%clk
0:00:38.8]} 30... Rd8 {[%clk 0:00:27]} 31. Rf4 {[%clk 0:00:37.1]} 31... Kf8
{[%clk 0:00:25.5]} 32. Ke2 {[%clk 0:00:37.1]} 32... Ke7 {[%clk 0:00:24.1]} 33.
Kd2 {[%clk 0:00:37.4]} 33... g5 {[%clk 0:00:21.2]} 34. Rf5 {[%clk 0:00:35.3]}
34... Ra6 {[%clk 0:00:19]} 35. Rb5 {[%clk 0:00:26.5]} 35... Rad6 {[%clk
0:00:18.1]} 36. g4 {[%clk 0:00:23.6]} 36... Rd4 {[%clk 0:00:17.1]} 37. f3 {[%clk
0:00:23.4]} 37... R4d6 {[%clk 0:00:17.5]} 38. Ke3 {[%clk 0:00:23]} 38... Rh8
{[%clk 0:00:14.1]} 39. Be4 {[%clk 0:00:20.2]} 39... Kf6 {[%clk 0:00:14]} 40. b4
{[%clk 0:00:19.8]} 40... h5 {[%clk 0:00:14.4]} 41. Rf5+ {[%clk 0:00:19.9]} 41...
Ke7 {[%clk 0:00:13.8]} 42. gxh5 {[%clk 0:00:20.4]} 42... Rxh5 {[%clk 0:00:12.3]}
43. c4 {[%clk 0:00:20.6]} 43... f6 {[%clk 0:00:12.1]} 44. c5 {[%clk 0:00:19.9]}
44... Rd1 {[%clk 0:00:12.4]} 45. b5 {[%clk 0:00:19.9]} 45... Rh2 {[%clk
0:00:10]} 46. c6 {[%clk 0:00:19]} 46... Rdd2 {[%clk 0:00:10]} 47. Bd3 {[%clk
0:00:18.2]} 47... Rd1 {[%clk 0:00:10.3]} 48. c7 {[%clk 0:00:17.1]} 48... Rc1
{[%clk 0:00:10.6]} 49. b6 {[%clk 0:00:17]} 49... Rb2 {[%clk 0:00:10.2]} 50. Rb5
{[%clk 0:00:15.6]} 50... Rxb5 {[%clk 0:00:07.5]} 51. Bxb5 {[%clk 0:00:16.5]}
51... Kd6 {[%clk 0:00:08.1]} 52. Ba6 {[%clk 0:00:17]} 52... Rxc7 {[%clk
0:00:04.5]} 53. bxc7 {[%clk 0:00:17.1]} 53... Kxc7 {[%clk 0:00:05.4]} 54. Ke4
{[%clk 0:00:17.5]} 54... Kd6 {[%clk 0:00:06.3]} 55. Kf5 {[%clk 0:00:17.4]} 55...
Ke7 {[%clk 0:00:07.2]} 56. Bc4 {[%clk 0:00:17.2]} 1-0

[Event "*** SCC Grand Prix: Titled Tuesday Blitz"]
[Site "Chess.com"]
[Date "2020.10.13"]
[Round "7"]
[White "northridgehawk"]
[Black "Lenyas66"]
[Result "1-0"]
[WhiteElo "2235"]
[BlackElo "2338"]
[TimeControl "180+1"]
[EndTime "11:17:42 PDT"]
[Termination "northridgehawk won on time"]

1. e4 {[%clk 0:03:00.7]} 1... c5 {[%clk 0:02:58.9]} 2. Nf3 {[%clk 0:02:57]} 2...
Nc6 {[%clk 0:02:58.8]} 3. d4 {[%clk 0:02:56.6]} 3... cxd4 {[%clk 0:02:58.6]} 4.
Nxd4 {[%clk 0:02:55.9]} 4... Qb6 {[%clk 0:02:57.4]} 5. Nb3 {[%clk 0:02:53]} 5...
Nf6 {[%clk 0:02:57.6]} 6. Nc3 {[%clk 0:02:52.3]} 6... e6 {[%clk 0:02:57.8]} 7.
Be2 {[%clk 0:02:49.6]} 7... Bb4 {[%clk 0:02:57.7]} 8. Qd3 {[%clk 0:02:49]} 8...
O-O {[%clk 0:02:51.3]} 9. O-O {[%clk 0:02:48.3]} 9... Bxc3 {[%clk 0:02:50]} 10.
bxc3 {[%clk 0:02:47.3]} 10... Ne5 {[%clk 0:02:47.6]} 11. Qg3 {[%clk 0:02:46.5]}
11... Ng6 {[%clk 0:02:44.8]} 12. Be3 {[%clk 0:02:44.4]} 12... Qc6 {[%clk
0:02:43]} 13. e5 {[%clk 0:02:39.2]} 13... Ne4 {[%clk 0:02:42]} 14. Qh3 {[%clk
0:02:25.9]} 14... Nxe5 {[%clk 0:02:36.2]} 15. Bd4 {[%clk 0:02:19.8]} 15... Ng6
{[%clk 0:02:32.6]} 16. Rad1 {[%clk 0:02:13.4]} 16... d5 {[%clk 0:02:32.5]} 17.
Qe3 {[%clk 0:02:09.8]} 17... b6 {[%clk 0:02:24.7]} 18. f4 {[%clk 0:02:09.1]}
18... Bb7 {[%clk 0:02:21.6]} 19. Rf3 {[%clk 0:02:06]} 19... Ne7 {[%clk
0:02:13.5]} 20. g4 {[%clk 0:02:04.7]} 20... f6 {[%clk 0:02:04.9]} 21. Rdf1
{[%clk 0:02:01.7]} 21... a5 {[%clk 0:01:51.4]} 22. Bd3 {[%clk 0:01:58.6]} 22...
a4 {[%clk 0:01:48.2]} 23. Nd2 {[%clk 0:01:57.3]} 23... Rae8 {[%clk 0:01:32.8]}
24. Rh3 {[%clk 0:01:55.3]} 24... Ng6 {[%clk 0:01:30.6]} 25. Bxb6 {[%clk
0:01:44.4]} 25... e5 {[%clk 0:01:28.2]} 26. f5 {[%clk 0:01:43.4]} 26... Ng5
{[%clk 0:01:26.2]} 27. Rg3 {[%clk 0:01:41.3]} 27... Nf4 {[%clk 0:01:20.4]} 28.
Qc5 {[%clk 0:01:36.2]} 28... Ngh3+ {[%clk 0:01:15]} 29. Kh1 {[%clk 0:01:31.7]}
29... Nxd3 {[%clk 0:01:12.5]} 30. cxd3 {[%clk 0:01:26.8]} 30... d4+ {[%clk
0:01:06.8]} 31. Qxc6 {[%clk 0:01:25.4]} 31... Bxc6+ {[%clk 0:01:06]} 32. Ne4
{[%clk 0:01:25.9]} 32... Ng5 {[%clk 0:01:05.7]} 33. Re1 {[%clk 0:01:21]} 33...
dxc3 {[%clk 0:01:04.5]} 34. Kg1 {[%clk 0:01:13.3]} 34... Rb8 {[%clk 0:00:55.2]}
35. Bc5 {[%clk 0:01:12.6]} 35... Rfc8 {[%clk 0:00:49.6]} 36. Ba3 {[%clk
0:01:04.7]} 36... c2 {[%clk 0:00:45.6]} 37. Rc1 {[%clk 0:01:04.5]} 37... Rb1
{[%clk 0:00:44.2]} 38. Nxg5 {[%clk 0:01:01.2]} 38... fxg5 {[%clk 0:00:43.9]} 39.
Kf2 {[%clk 0:00:58.4]} 39... Bb5 {[%clk 0:00:34.1]} 40. Ke2 {[%clk 0:00:56.9]}
40... e4 {[%clk 0:00:33.3]} 41. Kd2 {[%clk 0:00:55.9]} 41... exd3 {[%clk
0:00:29.4]} 42. Re3 {[%clk 0:00:55]} 42... Bc4 {[%clk 0:00:23]} 43. Re7 {[%clk
0:00:52.7]} 43... Rxc1 {[%clk 0:00:16.6]} 44. Bxc1 {[%clk 0:00:51.7]} 44... Bxa2
{[%clk 0:00:13.6]} 45. Kxd3 {[%clk 0:00:51.3]} 45... Bb3 {[%clk 0:00:13.7]} 46.
Kd2 {[%clk 0:00:50.7]} 46... Rc4 {[%clk 0:00:12.4]} 47. Bb2 {[%clk 0:00:50]}
47... Rxg4 {[%clk 0:00:11.2]} 48. Rxg7+ {[%clk 0:00:49.2]} 48... Kf8 {[%clk
0:00:11.2]} 49. Rxh7 {[%clk 0:00:48.2]} 49... Rg2+ {[%clk 0:00:11]} 50. Kc3
{[%clk 0:00:47.8]} 50... Rg1 {[%clk 0:00:10.2]} 51. Ba3+ {[%clk 0:00:47.7]}
51... Ke8 {[%clk 0:00:09.7]} 52. Kd2 {[%clk 0:00:43.6]} 52... Rd1+ {[%clk
0:00:08.8]} 53. Ke2 {[%clk 0:00:43.7]} 53... c1=Q {[%clk 0:00:09.2]} 54. Bxc1
{[%clk 0:00:43.8]} 54... Rxc1 {[%clk 0:00:09.7]} 55. h4 {[%clk 0:00:42.3]} 55...
g4 {[%clk 0:00:08.1]} 56. h5 {[%clk 0:00:40.2]} 56... a3 {[%clk 0:00:08.2]} 57.
Ra7 {[%clk 0:00:39.7]} 57... a2 {[%clk 0:00:08]} 58. h6 {[%clk 0:00:40]} 58...
a1=Q {[%clk 0:00:08.1]} 59. h7 {[%clk 0:00:38]} 59... Qb2+ {[%clk 0:00:07.1]}
60. Ke3 {[%clk 0:00:37.5]} 60... Re1+ {[%clk 0:00:06.7]} 61. Kf4 {[%clk
0:00:37.6]} 61... Qe5+ {[%clk 0:00:06.3]} 62. Kg5 {[%clk 0:00:37.4]} 62... Qe3+
{[%clk 0:00:04.2]} 63. Kg6 {[%clk 0:00:37.3]} 63... Rh1 {[%clk 0:00:02.9]} 64.
Ra8+ {[%clk 0:00:32.9]} 64... Kd7 {[%clk 0:00:02.7]} 65. h8=Q {[%clk 0:00:32.3]}
65... Rxh8 {[%clk 0:00:01.2]} 66. Rxh8 {[%clk 0:00:33.2]} 1-0